[Event "4NCL Div 1 2024-25"]
[Site "England"]
[Date "2025.04.06"]
[Round "8.9"]
[White "Lupulescu, Constantin"]
[Black "Kovchan, Alexander"]
[Result "1/2-1/2"]
[Annotator "TA"]
[ECO "E21"]
[WhiteElo "2597"]
[BlackElo "2453"]
[PlyCount "63"]
[EventDate "2024.11.23"]
[EventType "team-tourn"]
[EventCountry "ENG"]
[SourceTitle "playchess.com"]
[Source "ChessBase"]
[SourceQuality "1"]
[TimeControl "40/6000+30:3000+30"]

{[%evp 10,63,8,0,0,7,14,11,9,11,13,6,11,7,7,0,2,13,12,0,0,0,22,38,35,0,0,0,0,0,0,0,0,0,0,0,0,0,0,0,0,0,0,0,0,0,5,2,2,2,2,2,2,4,2,3]} 1. Nf3 {[%emt 0:10:03]} Nf6 {[%emt 0:10:22]} 2. c4 {[%emt 0:00:03]} b6 {[%emt 0:00:39]} 3. Nc3 {[%emt 0:00:40]} Bb7 {[%emt 0:01:26]} 4. d4 {[%emt 0:00:13]} e6 {[%emt 0:00:14]} 5. g3 {[%emt 0:00:14]} Bb4 {[%emt 0:01:55]} 6. Bd2 {[%emt 0:00:13]} Bxc3 {[%emt 0:01:31] E21: Nimzo-Indian: 4 Nf3.} 7. Bxc3 {[%emt 0:00:13]} Ne4 {[%emt 0:00:17]} 8. Rc1 {[%emt 0:00:17]} (8. Qd3 {with more complications.} O-O 9. Bg2 Nxc3 10. Ng5) 8... d6 {[%emt 0:00:54]} 9. Bg2 {[%emt 0:01:38]} Nxc3 {[%emt 0:02:03]} 10. Rxc3 {[%emt 0:00:04]} Nd7 {[%emt 0:00:07]} 11. O-O {[%emt 0:03:11]} O-O {[%emt 0:00:08]} 12. d5 {[%emt 0:06:10]} e5 {[%emt 0:03:22]} 13. e4 {[%emt 0:01:04]} a5 {[%emt 0:00:24]} 14. b3 {[%emt 0:04:56]} Bc8 $146 {[%emt 0:02:03]} (14... Nc5 15. Nh4 Re8 16. Nf5 Bc8 17. Ne3 Bd7 18. h4 b5 19. cxb5 Bxb5 20. Re1 Bd7 {1-0 Narayanan,S (2658)-Blohberger,F (2503) Wch Blitz Warsaw 2021 (14)}) 15. Nd2 {[%emt 0:08:36] Not much happening anymore} f5 {[%emt 0:01:59]} 16. exf5 {[%emt 0:02:17]} Rxf5 {[%emt 0:00:22]} 17. a3 {[%emt 0:04:07]} Rf8 {[%emt 0:02:31] The position is equal.} 18. Ne4 {[%emt 0:14:07]} Nc5 {[%emt 0:00:54]} 19. b4 {[%emt 0:00:16]} axb4 {[%emt 0:00:08]} 20. axb4 {[%emt 0:00:03]} Nxe4 {[%emt 0:00:14]} 21. Bxe4 {[%emt 0:00:04]} Bf5 {[%emt 0:00:36]} 22. Bxf5 {[%emt 0:02:42]} Rxf5 {[%emt 0:00:07]} 23. c5 {[%emt 0:01:09]} bxc5 {[%emt 0:01:22]} 24. bxc5 {[%emt 0:00:17]} Qf6 {[%emt 0:02:11]} 25. Qc2 {[%emt 0:04:20]} Rf8 {[%emt 0:00:07]} 26. cxd6 {[%emt 0:00:44]} cxd6 {[%emt 0:00:06]} 27. Rc8 {[%emt 0:01:00]} h5 {[%emt 0:02:29]} 28. Rxf8+ {[%emt 0:09:15]} Qxf8 {[%emt 0:00:27]} 29. Ra1 {[%emt 0:08:29]} e4 {[%emt 0:05:35]} 30. Re1 {[%emt 0:10:37]} Rxd5 {[%emt 0:04:52]} 31. Rxe4 {[%emt 0:03:20]} (31. Qa2 $5 Qf7 $8 32. Qc2 $11) 31... Qf5 {[%emt 0:00:41]} 32. Qe2 {[%emt 0:00:53] Weighted Error Value: White=0.02 (flawless) /Black=0.02 (flawless)   Inaccurate:     	White=1     	---        OK:         	White=14    	Black=12     Best:        	White=1     	---} 1/2-1/2

[Event "4NCL Div 1 2024-25"]
[Site "England"]
[Date "2025.04.06"]
[Round "8.10"]
[White "Badacsonyi, Stanley"]
[Black "Kantor, Gergely"]
[Result "0-1"]
[Annotator "TA"]
[ECO "E51"]
[WhiteElo "2298"]
[BlackElo "2558"]
[PlyCount "86"]
[EventDate "2024.11.23"]
[EventType "team-tourn"]
[EventCountry "ENG"]
[SourceTitle "playchess.com"]
[Source "ChessBase"]
[SourceQuality "1"]
[TimeControl "40/6000+30:3000+30"]

{[%evp 13,86,0,0,0,0,0,0,0,0,8,11,0,0,0,2,0,0,0,6,-36,0,-2,-7,-62,-18,-27,-34,-35,-35,-105,-102,-96,-96,-148,-153,-268,-259,-264,-239,-266,-246,-338,-331,-328,-325,-313,-279,-267,-231,-360,-370,-362,-283,-354,-211,-194,-181,-377,-366,-454,-339,-507,-502,-452,-356,-341,-347,-703,-692,-702,-703,-703,-703,-693,-693]} 1. d4 {[%emt 0:10:01]} Nf6 {[%emt 0:11:08]} 2. c4 {[%emt 0:00:49]} e6 {[%emt 0:00:05]} 3. Nc3 {[%emt 0:00:03]} Bb4 {[%emt 0:00:03]} 4. e3 {[%emt 0:00:04]} O-O {[%emt 0:00:06]} 5. Bd2 {[%emt 0:00:03]} d5 {[%emt 0:00:06]} 6. Nf3 {[%emt 0:00:03]} b6 {[%emt 0:00:16]} 7. cxd5 {[%emt 0:00:04]} exd5 {[%emt 0:00:03]} 8. Rc1 {[%emt 0:00:05] E51: Nimzo-Indian: Rubinstein: 4...0-0 5 Nf3 d5.} Re8 {[%emt 0:01:46]} 9. Bd3 {[%emt 0:00:51] 9.Ne5 is more fashionable.} Bf8 {[%emt 0:01:21]} 10. Ne5 {[%emt 0:05:10] The position is equal.} c5 {[%emt 0:01:34]} 11. O-O {[%emt 0:00:05]} Bb7 {[%emt 0:00:11]} 12. f4 {[%emt 0:12:54]} Nc6 {[%emt 0:01:30]} 13. Ne2 {[%emt 0:00:52]} c4 $5 {[%emt 0:01:33][%mdl 4] Leaves trodden paths.} 14. Bb1 {[%emt 0:01:31] A sharp opening} b5 {[%emt 0:00:09]} 15. Be1 $1 {[%emt 0:00:39]} Ne4 {[%emt 0:08:31]} 16. Ng3 $146 {[%emt 0:02:55]} (16. b3 {is interesting.} Ba3 17. Rc3 b4 18. Bxe4 bxc3 19. Bb1) (16. Bxe4 dxe4 17. Nxc6 Bxc6 18. f5 Qg5 19. Qd2 Bd6 20. Bg3 Bxg3 21. Nxg3 a5 22. Rf4 {1-0 Gareyev,T (2608)-Vokhidov,S (2566) Tashkent President op 2nd 2022 (10)}) 16... Ne7 {[%emt 0:09:04]} 17. f5 {[%emt 0:22:58] aiming for Bxe4.} f6 {[%emt 0:02:59]} 18. Ng4 {[%emt 0:00:51]} ({Better is} 18. Qh5 $11) 18... Nc8 {[%emt 0:10:54]} 19. Bxe4 {[%emt 0:04:04]} dxe4 {[%emt 0:00:15]} 20. Nh5 {[%emt 0:00:10]} Nb6 {[%emt 0:03:24]} 21. b3 {[%emt 0:04:15] Black keeps a firm grip on the game.} (21. Bb4 $15 Bxb4 22. Ngxf6+ Kh8 (22... gxf6 23. Qg4+ Kh8 24. Qg7#) 23. Nxe8 Qxe8 24. a3) 21... Rc8 {[%emt 0:20:03]} 22. bxc4 {[%emt 0:11:55]} bxc4 {[%emt 0:02:09][%csl Oc4] Black has a strong passed pawn} (22... Nxc4 $6 23. Bh4 Rc6 24. a4 $11) 23. Bh4 {[%emt 0:00:39]} (23. Ba5 $142) 23... Nd5 $17 {[%emt 0:00:49]} 24. Rb1 {[%emt 0:07:10]} (24. Qa4 $17) 24... Ba6 $19 {[%emt 0:02:49]} 25. Qa4 {[%emt 0:01:41]} Qd6 {[%emt 0:00:35]} 26. Rfc1 {[%emt 0:00:46]} c3 {[%emt 0:01:49]} 27. Bg3 {[%emt 0:01:16]} Qc6 {[%emt 0:01:25]} 28. Qa5 {[%emt 0:00:17][%cal Oa5d5]} Kh8 {[%emt 0:09:41]} 29. h3 {[%emt 0:04:26]} c2 {[%emt 0:03:21]} 30. Rb3 {[%emt 0:01:06]} Qc4 {[%emt 0:03:02] [#]} 31. Kh2 {[%emt 0:00:41]} (31. Nf4 $142 Nxf4 32. Bxf4) 31... Bb4 {[%emt 0:01:27]} 32. Rxb4 {[%emt 0:00:07]} Nxb4 {[%emt 0:00:22]} 33. a3 {[%emt 0:00:31]} Nc6 {[%emt 0:04:42]} (33... Nd3 $142 34. Rxc2 Qxc2 35. Qxa6 Re7 36. Nhxf6 gxf6 (36... Qc6 $2 37. Qxc6 Rxc6 38. Nh5 $19) 37. Qxf6+ Rg7) 34. Qe1 {[%emt 0:00:52][%cal Og4f6]} Qf7 {[%emt 0:00:56]} 35. Nf4 {[%emt 0:00:18]} (35. Ngxf6 gxf6 36. Bh4 Qc7+ (36... Qxh5 $2 37. Bxf6+ Kg8 38. Qg3+ $18) 37. Kg1) 35... Bd3 {[%emt 0:02:26]} 36. Nf2 {[%emt 0:00:47]} Qd7 {[%emt 0:00:38]} 37. N4xd3 {[%emt 0:02:39]} (37. Qd2 {keeps fighting.} Qxf5 38. N2xd3 exd3 39. Nxd3) 37... exd3 {[%emt 0:00:07]} 38. Qd2 {[%emt 0:00:02]} Qxf5 {[%emt 0:03:01]} 39. Nxd3 {[%emt 0:00:20]} Na5 {[%emt 0:01:04][%cal Bc6a5,Ba5b3,Bb3d2][%mdl 32]} 40. e4 $2 {[%emt 0:04:29]} (40. Nc5 Nc4 41. Qxc2 Nxe3 (41... Nxa3 $2 {is the wrong capture.} 42. Qxf5 a6 43. d5 $18) 42. Qxf5 Nxf5 43. Bf2) 40... Nb3 {[%emt 0:02:46] Black is clearly winning.} 41. exf5 {[%emt 0:50:08]} Nxd2 {[%emt 0:50:03]} 42. Nc5 {[%emt 0:00:05]} Re2 {[%emt 0:00:59] aiming for ...Nf3+.} 43. Kh1 {[%emt 0:00:04] [#]} Rxc5 $1 {[%emt 0:01:10] Weighted Error Value: White=0.50/Black=0.22 (precise)   Mistake:       	White=8     	Black=1      Inaccurate:     	White=2     	Black=2      OK:         	White=14    	Black=10     Best:        	White=3     	Black=5      Strong:       	White=1     	---} 0-1

[Event "4NCL Div 1 2024-25"]
[Site "England"]
[Date "2025.04.06"]
[Round "8.11"]
[White "Grieve, Harry"]
[Black "Badacsonyi, Frankie"]
[Result "1-0"]
[Annotator "RC"]
[ECO "B66"]
[WhiteElo "2464"]
[BlackElo "2266"]
[PlyCount "165"]
[EventDate "2024.11.23"]
[EventType "team-tourn"]
[EventCountry "ENG"]
[SourceTitle "playchess.com"]
[Source "ChessBase"]
[SourceQuality "1"]
[TimeControl "40/6000+30:3000+30"]

1. e4 {[%emt 0:10:01]} c5 {[%emt 0:11:24]} 2. Nf3 {[%emt 0:00:05]} d6 {[%emt 0:00:08]} 3. d4 {[%emt 0:00:03]} cxd4 {[%emt 0:00:14]} 4. Nxd4 {[%emt 0:00:06]} Nf6 {[%emt 0:00:05]} 5. Nc3 {[%emt 0:00:04]} Nc6 {[%emt 0:00:05]} 6. Bg5 {[%emt 0:00:05]} Bd7 {[%emt 0:00:33]} 7. Qd2 {[%emt 0:04:31]} a6 {[%emt 0:00:19]} 8. O-O-O {[%emt 0:00:25]} e6 {[%emt 0:00:10]} 9. Nxc6 {[%emt 0:00:05]} Bxc6 {[%emt 0:00:13]} 10. f3 {[%emt 0:00:06]} h6 {[%emt 0:01:39]} 11. Bf4 {[%emt 0:00:06]} d5 {[%emt 0:00:15]} 12. Qe1 {[%emt 0:00:05]} Bb4 {[%emt 0:00:36]} 13. a3 {[%emt 0:00:05]} Bxc3 {[%emt 0:06:51]} 14. Qxc3 {[%emt 0:00:05]} O-O {[%emt 0:00:04]} 15. g4 {[%emt 0:00:09]} Rc8 {[%emt 0:00:08]} 16. Qe3 {[%emt 0:00:44]} Re8 {[%emt 0:00:26]} 17. g5 {[%emt 0:00:33]} Nh5 {[%emt 0:01:21]} 18. gxh6 {[%emt 0:01:27]} Ba4 {[%emt 0:00:40]} 19. Bd3 {[%emt 0:00:06]} d4 {[%emt 0:00:36]} 20. Qd2 {[%emt 0:00:06]} Bxc2 {[%emt 0:00:22]} 21. Bxc2 {[%emt 0:00:05]} d3 {[%emt 0:00:04]} 22. Qxd3 {[%emt 0:00:05]} Qxd3 {[%emt 0:00:32]} 23. Rxd3 {[%emt 0:00:02]} Nxf4 {[%emt 0:00:09]} 24. Rd7 {[%emt 0:00:05]} gxh6 {[%emt 1:25:36]} 25. Rhd1 {[%emt 0:01:06]} Rb8 {[%emt 0:00:00]} 26. h4 {[%emt 0:00:06]} Ng6 {[%emt 0:00:00]} 27. f4 {[%emt 0:08:52]} Re7 {[%emt 0:00:00]} 28. Rxe7 {[%emt 0:24:07]} Nxe7 {[%emt 0:00:00]} 29. f5 {[%emt 0:00:14]} exf5 {[%emt 0:00:00]} 30. exf5 {[%emt 0:00:16]} Rc8 {[%emt 0:00:00]} 31. Kb1 {[%emt 0:04:34]} Rc5 {[%emt 0:00:00]} 32. f6 {[%emt 0:09:21]} Nd5 {[%emt 0:04:00]} 33. Be4 {[%emt 0:05:47]} Nxf6 {[%emt 0:00:00]} 34. Bxb7 {[%emt 0:00:12]} a5 {[%emt 0:00:00]} 35. Rd4 {[%emt 0:01:36]} Kf8 {[%emt 0:00:00]} 36. b4 {[%emt 0:03:07]} axb4 {[%emt 0:00:00]} 37. axb4 {[%emt 0:00:34]} Rc7 {[%emt 0:00:00]} 38. Bf3 {[%emt 0:04:27]} Nd7 {[%emt 0:00:00]} 39. Kb2 {[%emt 0:06:50]} Ke7 {[%emt 0:00:00]} 40. Kb3 {[%emt 0:04:44]} Nb6 {[%emt 0:00:00]} 41. b5 {[%emt 0:55:39]} Rd7 {[%emt 0:43:15]} 42. Rf4 {[%emt 0:02:23]} Ra7 {[%emt 0:00:00]} 43. Rf5 {[%emt 0:00:00]} Ra4 {[%emt 0:00:00]} 44. Rh5 {[%emt 0:00:00]} Rf4 {[%emt 0:00:00]} 45. Bc6 {[%emt 0:00:00]} Rf6 {[%emt 0:00:00]} 46. Kb4 {[%emt 0:00:00]} Kd6 {[%emt 0:00:00]} 47. Ka5 {[%emt 0:00:00]} Kc7 {[%emt 0:00:00]} 48. Rc5 {[%emt 0:00:00]} Nc8 {[%emt 0:00:00]} 49. h5 {[%emt 0:00:00]} Kb8 {[%emt 0:00:54]} 50. Bd7 {[%emt 0:09:20]} Nb6 {[%emt 0:07:57]} 51. Bf5 {[%emt 0:01:47]} Rd6 {[%emt 0:02:57]} 52. Be4 {[%emt 0:00:17]} Nd7 {[%emt 0:00:55]} 53. Rc3 {[%emt 0:01:25]} Ne5 {[%emt 0:01:25]} 54. Bf5 {[%emt 0:02:32]} Kb7 {[%emt 0:01:00]} 55. Bc8+ {[%emt 0:00:11]} Kb8 {[%emt 0:00:23]} 56. Bf5 {[%emt 0:01:15]} Kb7 {[%emt 0:00:08]} 57. Rc5 {[%emt 0:00:10]} f6 {[%emt 0:00:29]} 58. Bc8+ {[%emt 0:00:56]} Kb8 {[%emt 0:00:13]} 59. Ba6 {[%emt 0:00:48]} Rd8 {[%emt 0:00:54]} 60. b6 {[%emt 0:00:46]} Nf7 {[%emt 0:01:12]} 61. Rc7 {[%emt 0:02:05]} Nd6 {[%emt 0:01:00]} 62. Rh7 {[%emt 0:06:49]} Nf5 {[%emt 0:01:04]} 63. Rf7 {[%emt 0:00:00]} Ng3 {[%emt 0:00:36]} 64. Bb5 {[%emt 0:00:00]} Rc8 {[%emt 0:00:44]} 65. Ba6 {[%emt 0:00:00]} Rd8 {[%emt 0:00:04]} 66. Rb7+ {[%emt 0:00:36]} Ka8 {[%emt 0:00:02]} 67. Ra7+ {[%emt 0:00:18]} Kb8 {[%emt 0:00:02]} 68. Rb7+ {[%emt 0:00:06]} Ka8 {[%emt 0:00:05]} 69. Rc7 {[%emt 0:00:11]} Kb8 {[%emt 0:00:25]} 70. Rc6 {[%emt 0:00:31]} Ne4 {[%emt 0:01:01]} 71. Re6 {[%emt 0:00:38]} Rd5+ {[%emt 0:00:50]} 72. Kb4 {[%emt 0:01:13]} Rd4+ {[%emt 0:00:41]} 73. Ka5 {[%emt 0:01:24]} Rd5+ {[%emt 0:01:14]} 74. Kb4 {[%emt 0:00:29]} Rd4+ {[%emt 0:00:11]} 75. Kb5 {[%emt 0:00:13]} Rd5+ {[%emt 0:00:50]} 76. Kc4 {[%emt 0:00:10]} Re5 {[%emt 0:00:27]} 77. Rc6 {[%emt 0:00:07]} Re8 {[%emt 0:00:23]} 78. b7 {[%emt 0:00:36]} Ka7 {[%emt 0:00:45]} 79. Rc8 {[%emt 0:00:32]} Nd6+ {[%emt 0:00:41]} 80. Kd5 {[%emt 0:00:19]} Nxc8 {[%emt 0:00:38]} 81. bxc8=Q {[%emt 0:00:06]} Rxc8 {[%emt 0:00:04]} 82. Bxc8 {[%emt 0:00:04]} Kb8 {[%emt 0:00:03]} 83. Bf5 {[%emt 0:00:16]} 1-0

[Event "4NCL Div 1 2024-25"]
[Site "England"]
[Date "2025.04.06"]
[Round "8.12"]
[White "Yoon, Jacob D"]
[Black "Cyborowski, Lukasz"]
[Result "1/2-1/2"]
[Annotator "RC"]
[ECO "D37"]
[WhiteElo "2270"]
[BlackElo "2454"]
[PlyCount "77"]
[EventDate "2024.11.23"]
[EventType "team-tourn"]
[EventCountry "ENG"]
[SourceTitle "playchess.com"]
[Source "ChessBase"]
[SourceQuality "1"]
[TimeControl "40/6000+30:3000+30"]

1. d4 {[%emt 0:12:24]} d5 {[%emt 0:10:28]} 2. c4 {[%emt 0:00:29]} e6 {[%emt 0:00:16]} 3. Nf3 {[%emt 0:00:17]} Nf6 {[%emt 0:01:08]} 4. Nc3 {[%emt 0:00:06]} Nbd7 {[%emt 0:01:48]} 5. c5 {[%emt 0:04:53]} Be7 {[%emt 0:21:46]} 6. Bf4 {[%emt 0:01:54]} Nh5 {[%emt 0:00:17]} 7. Be5 {[%emt 0:03:42]} Nxe5 {[%emt 0:04:05]} 8. Nxe5 {[%emt 0:00:07]} Nf6 {[%emt 0:02:17]} 9. e3 {[%emt 0:00:32]} Nd7 {[%emt 0:02:07]} 10. Nf3 {[%emt 0:08:00]} c6 {[%emt 0:01:42]} 11. b4 {[%emt 0:00:10]} O-O {[%emt 0:02:13]} 12. Bd3 {[%emt 0:00:04]} Qc7 {[%emt 0:07:41]} 13. e4 {[%emt 0:09:37]} dxe4 {[%emt 0:08:08]} 14. Bxe4 {[%emt 0:05:22]} Nf6 {[%emt 0:00:06]} 15. Bc2 {[%emt 0:06:41]} Nd5 {[%emt 0:10:51]} 16. Nxd5 {[%emt 0:00:21]} exd5 {[%emt 0:00:06]} 17. Ne5 {[%emt 0:02:56]} a5 {[%emt 0:15:43]} 18. a3 {[%emt 0:02:28]} axb4 {[%emt 0:02:34]} 19. axb4 {[%emt 0:00:44]} Rxa1 {[%emt 0:00:08]} 20. Qxa1 {[%emt 0:00:05]} f6 {[%emt 0:02:43]} 21. Nd3 {[%emt 0:02:53]} Bf5 {[%emt 0:00:53]} 22. O-O {[%emt 0:00:07]} g6 {[%emt 0:01:55]} 23. Ne1 {[%emt 0:00:46]} Bg4 {[%emt 0:04:17]} 24. f3 {[%emt 0:02:30]} Bd7 {[%emt 0:00:17]} 25. g3 {[%emt 0:01:37]} Re8 {[%emt 0:00:30]} 26. f4 {[%emt 0:04:29]} Bh3 {[%emt 0:00:53]} 27. Ng2 {[%emt 0:01:28]} f5 {[%emt 0:02:50]} 28. Re1 {[%emt 0:01:16]} Bxg2 {[%emt 0:02:50]} 29. Kxg2 {[%emt 0:00:04]} Kf7 {[%emt 0:00:13]} 30. b5 {[%emt 0:15:25]} Bf6 {[%emt 0:00:10]} 31. Rxe8 {[%emt 0:00:05]} Kxe8 {[%emt 0:00:04]} 32. Kf3 {[%emt 0:06:11]} Kf7 {[%emt 0:01:30]} 33. Bd3 {[%emt 0:08:20]} Kg7 {[%emt 0:01:33]} 34. h3 {[%emt 0:02:09]} Qe7 {[%emt 0:00:32]} 35. g4 {[%emt 0:02:49]} fxg4+ {[%emt 0:01:02]} 36. hxg4 {[%emt 0:00:04]} Qxc5 {[%emt 0:02:03]} 37. dxc5 {[%emt 0:00:02]} Bxa1 {[%emt 0:00:09]} 38. bxc6 {[%emt 0:00:03]} bxc6 {[%emt 0:00:05]} 39. Ba6 {[%emt 0:00:01]} 1/2-1/2

[Event "4NCL Div 1 2024-25"]
[Site "England"]
[Date "2025.04.06"]
[Round "8.13"]
[White "Royal, Shreyas"]
[Black "Villiers, Thomas"]
[Result "1-0"]
[Annotator "TA"]
[ECO "A11"]
[WhiteElo "2520"]
[BlackElo "2182"]
[PlyCount "75"]
[EventDate "2024.11.23"]
[EventType "team-tourn"]
[EventCountry "ENG"]
[SourceTitle "playchess.com"]
[Source "ChessBase"]
[SourceQuality "1"]
[TimeControl "40/6000+30:3000+30"]

{[%evp 10,75,16,25,21,-11,-2,-2,6,-4,0,0,27,29,26,0,0,0,0,0,-4,-50,0,-29,7,0,0,-8,36,25,42,35,39,31,27,22,37,25,50,9,14,15,25,29,125,121,121,128,122,138,175,163,192,218,209,209,199,187,217,223,219,211,407,415,412,404,447,429]} 1. c4 {[%emt 0:10:03]} c6 {[%emt 0:25:02]} 2. Nf3 {[%emt 0:00:08]} d5 {[%emt 0:00:07]} 3. g3 {[%emt 0:01:16]} Nf6 {[%emt 0:00:16]} 4. Bg2 {[%emt 0:00:07]} Bf5 {[%emt 0:00:34]} 5. Qb3 {[%emt 0:02:28]} Qb6 {[%emt 0:00:29]} 6. d3 {[%emt 0:00:33]} Nbd7 {[%emt 0:02:02] A11: English Opening: 1...c6.} 7. Be3 {[%emt 0:02:31] 7.Qxb6 is vanishing.} Qxb3 {[%emt 0:06:05]} 8. axb3 {[%emt 0:00:02]} e5 {[%emt 0:00:12] The position is equal. Dodges Nd4} 9. O-O {[%emt 0:08:55]} a6 $146 {[%emt 0:03:34]} (9... d4 10. Bg5 Be7 11. Na3 h6 12. Bxf6 Bxf6 13. Nc2 O-O 14. b4 a6 15. Nd2 Be7 {0-1 John Veny,A (2112)-Ljukin,S (2362) Titled Tuesday intern op 26th Dec Early blitz 2023 (3)}) 10. d4 {[%emt 0:04:58]} Bd6 {[%emt 0:03:07]} 11. dxe5 {[%emt 0:09:01]} Nxe5 {[%emt 0:00:08]} 12. Bd4 {[%emt 0:01:43]} Nxf3+ {[%emt 0:02:02]} 13. Bxf3 {[%emt 0:01:19]} dxc4 {[%emt 0:00:10]} 14. e4 {[%emt 0:04:58]} Bg4 {[%emt 0:01:04]} (14... Bxe4 15. Re1 $16) 15. Bg2 {[%emt 0:14:21]} (15. Bxg4 $11 Nxg4 16. Bxg7) 15... Be7 {[%emt 0:07:47]} 16. bxc4 {[%emt 0:01:49]} O-O {[%emt 0:00:32]} 17. Bc3 {[%emt 0:05:32]} Rad8 {[%emt 0:02:25]} 18. Nd2 {[%emt 0:00:28][%cal Bb1d2,Bd2b3,Bb3a5][%mdl 32]} Rd3 {[%emt 0:03:33]} (18... Nd7 $5) 19. e5 {[%emt 0:02:31]} Ne8 {[%emt 0:01:29][%cal Bf6e8,Be8c7,Bc7e6,Be6d4][%mdl 32]} 20. Nb3 {[%emt 0:03:38]} Nc7 {[%emt 0:01:50]} 21. Na5 {[%emt 0:00:06]} Bc8 {[%emt 0:00:25]} 22. Be4 {[%emt 0:00:30]} Rd7 {[%emt 0:00:53]} 23. b4 {[%emt 0:01:50]} Ne6 {[%emt 0:00:15]} 24. f4 {[%emt 0:05:44] White has a king side majority} Nd4 {[%emt 0:01:17]} 25. Kf2 $36 {[%emt 0:00:28][%mdl 2048] Prevents Ne2. White fights for an advantage.} Rfd8 {[%emt 0:01:47]} 26. Rfd1 {[%emt 0:01:39]} c5 {[%emt 0:05:18]} (26... f5 $11 27. e6 Nxe6 28. Rxd7 Bxd7 29. Bxf5 g6) 27. Bxd4 $16 {[%emt 0:05:30]} Rxd4 {[%emt 0:01:49]} 28. Rxd4 {[%emt 0:00:04]} Rxd4 {[%emt 0:00:41]} 29. Ke3 {[%emt 0:00:04] White is more active.} (29. Bxb7 Bxb7 30. Nxb7 cxb4 $11) 29... Rd7 {[%emt 0:01:14]} 30. b5 {[%emt 0:00:33]} axb5 {[%emt 0:01:25]} 31. cxb5 {[%emt 0:00:01]} g6 {[%emt 0:00:32] [#] Wards off Bf5} 32. Nc4 $1 {[%emt 0:01:33]} Rd8 {[%emt 0:01:58] [#]} 33. Ra7 $1 {[%emt 0:02:34][%cal Ob5b6]} Be6 {[%emt 0:00:56]} 34. Na5 {[%emt 0:00:10]} ({Don't play} 34. Rxb7 $6 Bxc4 35. Rxe7 Bxb5 $16) 34... c4 {[%emt 0:01:35]} 35. Nxb7 {[%emt 0:00:08][%cal Ob7d6] Strongly threatening Nd6!.} Rd1 {[%emt 0:00:37] [#]} (35... Kg7 36. Nxd8 Bc5+ 37. Kd2 Bxa7 38. Nxe6+ (38. Kc3 Bg1 $18) 38... fxe6) 36. Nd6 $1 $18 {[%emt 0:02:04][%mdl 512]} Bxd6 {[%emt 0:01:06]} 37. exd6 {[%emt 0:00:02]} Rxd6 {[%emt 0:00:15]} 38. Ra6 {[%emt 0:00:13] Weighted Error Value: White=0.08 (flawless) /Black=0.27 (precise)   Mistake:       	White=1     	Black=2      Inaccurate:     	White=3     	Black=3      OK:         	White=10    	Black=10     Best:        	White=2     	Black=2      Strong:       	White=2     	---        Brilliant:      	White=1     	---} 1-0

[Event "4NCL Div 1 2024-25"]
[Site "England"]
[Date "2025.04.06"]
[Round "8.14"]
[White "Pang, Ethan"]
[Black "Jaracz, Pawel"]
[Result "1/2-1/2"]
[Annotator "RC"]
[ECO "B80"]
[WhiteElo "2303"]
[BlackElo "2473"]
[PlyCount "57"]
[EventDate "2024.11.23"]
[EventType "team-tourn"]
[EventCountry "ENG"]
[SourceTitle "playchess.com"]
[Source "ChessBase"]
[SourceQuality "1"]
[TimeControl "40/6000+30:3000+30"]

1. e4 {[%emt 0:14:24]} c5 {[%emt 0:11:33]} 2. Nf3 {[%emt 0:01:00]} e6 {[%emt 0:00:13]} 3. d4 {[%emt 0:00:42]} cxd4 {[%emt 0:00:05]} 4. Nxd4 {[%emt 0:00:06]} Nc6 {[%emt 0:00:07]} 5. Nc3 {[%emt 0:00:50]} Qc7 {[%emt 0:00:29]} 6. g3 {[%emt 0:01:47]} a6 {[%emt 0:00:17]} 7. Bg2 {[%emt 0:01:01]} d6 {[%emt 0:00:25]} 8. Nxc6 {[%emt 0:01:19]} bxc6 {[%emt 0:00:51]} 9. O-O {[%emt 0:01:10]} Nf6 {[%emt 0:04:32]} 10. Na4 {[%emt 0:03:42]} Bb7 {[%emt 0:09:50]} 11. c4 {[%emt 0:02:29]} c5 {[%emt 0:00:09]} 12. Re1 {[%emt 0:02:23]} Nd7 {[%emt 0:00:36]} 13. b3 {[%emt 0:02:42]} Be7 {[%emt 0:00:19]} 14. Bb2 {[%emt 0:03:54]} O-O {[%emt 0:00:27]} 15. Qc2 {[%emt 0:04:52]} Bc6 {[%emt 0:02:20]} 16. Nc3 {[%emt 0:05:39]} Bf6 {[%emt 0:00:12]} 17. Rad1 {[%emt 0:01:13]} Rfd8 {[%emt 0:04:45]} 18. Rd2 {[%emt 0:05:23]} Bb7 {[%emt 0:05:48]} 19. Na4 {[%emt 0:05:32]} Bxb2 {[%emt 0:05:05]} 20. Qxb2 {[%emt 0:01:40]} Ne5 {[%emt 0:01:00]} 21. Red1 {[%emt 0:01:18]} h6 {[%emt 0:08:59]} 22. f4 {[%emt 0:07:50]} Ng4 {[%emt 0:07:28]} 23. Qc3 {[%emt 0:03:25]} Nf6 {[%emt 0:13:19]} 24. e5 {[%emt 0:04:52]} Bxg2 {[%emt 0:00:57]} 25. exf6 {[%emt 0:01:30]} Bb7 {[%emt 0:00:31]} 26. h4 {[%emt 0:10:15]} Qc6 {[%emt 0:04:26]} 27. Kh2 {[%emt 0:00:17]} g6 {[%emt 0:01:06]} 28. Qe3 {[%emt 0:02:50]} Kh7 {[%emt 0:00:09]} 29. h5 {[%emt 0:10:02]} 1/2-1/2